Cogmind - Beta 11.1 @@@ ROGUE MODE // 2022.06.06 @ 14:45:54 Player: ktur Result: Destroyed by Enhanced Grunt with Neutron Cannon Performance ------------- Evolutions (3) 1500 Regions Visited (12) 2400 Robots Destroyed (181) 905 Value Destroyed (5870) 5870 Prototype IDs (217) 4340 Alien Tech Used (0) 0 Bonus (3750) 3750 TOTAL SCORE: 18765 Bonus ------- High Alert Combat Kills 294 Follower Combat Kills 174 Met Data Miner 300 Used Data Conduit 3000 Friendly Fire -18 Cogmind --------- Core Integrity 0/700 Matter 174/300 Energy 0/100 System Corruption 0% Temperature Cool (0) Movement Core (750) Ox14 Location -7/Data Miner Parts ------- > --- POWER (1) -------- (None) > --- PROPULSION (2) --- (None) > --- UTILITY (7) ------ Coolant Injector High-capacity Storage Unit Advanced Targeting Computer > --- WEAPON (3) ------- Improved Spread Laser > --- INVENTORY (20) --- Makeshift Power Source Coolant Injector High-capacity Matter Pod (0) Hacking Suite Hacking Suite Hacking Suite Authchip [Storage] Long-range Tractor Beam Splice Drone Bay (6/6) Improved Spread Laser Great Maul Peak State ------------ > --- POWER ------------ Heavy Ion Engine > --- PROPULSION ------- Light Treads Light Treads > --- UTILITY ---------- Cooling System Coolant Injector High-capacity Storage Unit Advanced Visual Processing Unit Advanced Targeting Computer Medium Reflective Plating Improved Shield Generator > --- WEAPON ----------- Improved Spread Laser Improved Spread Laser Improved Heavy Machine Gun > --- INVENTORY -------- Deuterium Engine Light Treads Improved Treads Coolant Injector High-capacity Matter Pod Layered Light Armor Plating Reactive Plating Hacking Suite Hacking Suite Hacking Suite Authchip [Storage] Long-range Tractor Beam Splice Drone Bay Heavy EM Shotgun Heavy EM Shotgun Minigun Precision Assault Rifle Mini Grenade Launcher Great Maul [Rating: 48] Favorites ----------- Power Heavy Ion Engine Engine Heavy Ion Engine Propulsion Light Treads Treads Light Treads Utility Cooling System Device Cooling System Storage High-capacity Storage Unit Processor Advanced Targeting Computer Hackware Hacking Suite Protection Medium Armor Plating Weapon Improved Spread Laser Energy Gun Improved Spread Laser Ballistic Gun Improved Heavy Machine Gun Ballistic Cannon Advanced Assault Cannon Launcher Mini Grenade Launcher Special Weapon Plasma Cutter Impact Weapon Flail Build | -11 -10 -10 -9 -9 -9 -8 -8 -8 -7 -7 -7 -7 ------- Run | Scr Mat Min Mat Min Exi Min Mat Sto Fac Low Low Dat Slots Evolved 6 | . . . 2 . . . 2 . 2 . . . Power . | . . . . . . . . . . . . . Propulsion . | . . . . . . . . . . . . . Utility 5 | . . . 2 . . . 1 . 2 . . . Weapon 1 | . . . . . . . 1 . . . . . Parts Attached 165 | 5 11 5 42 1 2 8 21 27 16 8 10 9 Power 9 | . 1 1 2 . 1 . . . . 2 2 . Engine 9 | . 1 1 2 . 1 . . . . 2 2 . Core . | . . . . . . . . . . . . . Reactor . | . . . . . . . . . . . . . Propulsion 28 | 2 2 . 11 . . . 2 6 1 . 2 2 Treads 28 | 2 2 . 11 . . . 2 6 1 . 2 2 Leg . | . . . . . . . . . . . . . Wheel . | . . . . . . . . . . . . . Hover . | . . . . . . . . . . . . . Flight . | . . . . . . . . . . . . . Utility 65 | 1 4 4 13 . 1 5 9 7 11 5 4 1 Device 23 | . 1 3 3 . . 1 5 2 6 1 1 . Storage 8 | 1 1 1 2 . . 1 . 2 . . . . Processor 5 | . . . 1 . . . . 2 1 1 . . Hackware 1 | . . . . . . . . . 1 . . . Protection 28 | . 2 . 7 . 1 3 4 1 3 3 3 1 Artifact . | . . . . . . . . . . . . . Weapon 63 | 2 4 . 16 1 . 3 10 14 4 1 2 6 Energy Gun 42 | 1 4 . 10 1 . 2 10 9 2 . . 3 Energy Cannon . | . . . . . . . . . . . . . Ballistic Gun 7 | 1 . . . . . . . 2 1 1 1 1 Ballistic Cannon 1 | . . . . . . . . . . . 1 . Launcher 7 | . . . 3 . . 1 . 1 . . . 2 Special Weapon 1 | . . . 1 . . . . . . . . . Impact Weapon 5 | . . . 2 . . . . 2 1 . . . Slashing Weapon . | . . . . . . . . . . . . . Piercing Weapon . | . . . . . . . . . . . . . Special Melee Weapon . | . . . . . . . . . . . . . Unidentified Prototypes 8 | . 1 1 1 . . . 1 3 1 . . . Parts Lost 25 | . 1 . 2 . . 1 1 1 1 1 1 16 Power 1 | . . . . . . . . . . . . 1 Propulsion 5 | . . . . . . . . . 1 . . 4 Utility 10 | . . . 2 . . 1 1 1 . . 1 4 Weapon 9 | . 1 . . . . . . . . 1 . 7 Highest Loss Streak 16 | . 1 . 1 . . 1 1 1 1 1 1 16 To Critical Strikes . | . . . . . . . . . . . . . Average Slot Usage (%) 98 | . 97 100 98 100 80 99 98 99 98 99 97 82 Engine 10 | . 13 14 11 11 11 11 9 9 7 7 7 5 Treads 20 | . 27 28 22 22 22 22 18 18 15 15 15 13 Device 15 | . 4 14 15 11 11 11 19 19 21 22 18 7 Storage 10 | . 14 14 11 11 11 11 9 9 7 7 7 7 Processor 4 | . . . 2 . . . . 7 14 15 15 15 Protection 12 | . 7 . 14 22 22 21 15 9 7 7 9 11 Energy Gun 20 | . 18 28 20 22 3 21 26 25 22 18 12 . Ballistic Gun 2 | . 9 . . . . . . . . 3 8 12 Naked Turns . | . . . . . . . . . . . . . Heaviest Build 86 | 9 33 32 67 67 67 68 78 74 77 77 86 86 Greatest Support 43 | 40 40 40 40 40 40 40 40 40 40 40 43 43 Greatest Overweight (x) 2 | 1 . . 1 1 1 1 1 1 1 1 2 1 Average Overweight (x) . | . . . . 1 1 1 1 1 1 1 1 1 Largest Inventory Capacity 20 | 8 15 15 20 20 20 20 20 20 20 20 20 20 Average Capacity 18 | 6 13 15 16 20 20 20 20 20 20 20 20 20 Most Carried 20 | 7 15 15 20 20 20 19 20 20 20 20 20 20 Average Carried 17 | 4 12 14 16 20 19 18 19 19 19 19 19 18 Final Capacity 20 | 8 15 15 20 20 20 20 20 20 20 20 20 20 Final Carried 20 | 7 15 15 20 20 20 19 20 20 20 19 20 11 Class Distribution -------------------- 52% | Mutant 23% | Tank 9% | Gunner 8% | Scavenger-Mutant 3% | Skirmisher Dominant Class ---------------- Mutant | -10/Materials Mutant | -10/Mines Mutant | -9/Materials Mutant | -9/Mines Mutant | -9/Exiles Mutant | -8/Mines Tank | -8/Materials Gunner | -8/Storage Tank | -7/Factory Tank | -7/Lower Caves Tank | -7/Lower Caves Derelict-Tank | -7/Data Miner Resources | -11 -10 -10 -9 -9 -9 -8 -8 -8 -7 -7 -7 -7 ----------- Run | Scr Mat Min Mat Min Exi Min Mat Sto Fac Low Low Dat Matter Collected 2471 | 199 402 50 539 43 . 121 216 337 85 214 65 200 Remotely . | . . . . . . . . . . . . . Salvage Created 6162 | . 615 261 1832 29 . 306 981 1343 265 378 17 135 Parts 329 | . 44 13 114 1 . 24 40 62 11 18 . 2 Haulers Intercepted 11 | . 2 . 4 . . . . 5 . . . . Recyclers Shooed 5 | . 1 . 2 . . . 1 1 . . . . Parts Field Recycled . | . . . . . . . . . . . . . Retrieved Matter . | . . . . . . . . . . . . . Parts Self-Destructed 22 | . . . . . . . . . . 20 2 . Prevented 1 | . . . . . . . . . . 1 . . Kills | -11 -10 -10 -9 -9 -9 -8 -8 -8 -7 -7 -7 -7 ------- Run | Scr Mat Min Mat Min Exi Min Mat Sto Fac Low Low Dat Combat Hostiles Destroyed 145 | . 13 6 44 3 . 14 12 28 7 14 1 3 Guns 123 | . 13 6 37 2 . 9 12 21 7 14 1 1 AOE 19 | . . . 5 . . 5 . 7 . . . 2 Classes Destroyed 16 | . 4 . 6 . . 1 1 2 1 . 1 . Worker 2 | . . . 1 . . . . 1 . . . . Tunneler 1 | . . . . . . 1 . . . . . . Hauler 11 | . 2 . 4 . . . . 5 . . . . Recycler 8 | . . . . . . . 7 1 . . . . Mechanic 2 | . . . 2 . . . . . . . . . Operator 6 | . . . 4 . . . 1 1 . . . . Watcher 7 | . 1 . 3 . . . 1 1 1 . . . Swarmer 34 | . 3 . 10 2 . 11 . . . 8 . . Grunt 75 | . 10 6 25 . . 3 9 13 5 4 . . Brawler 2 | . . . 1 . . . . 1 . . . . Duelist 6 | . . . 1 . . . . 4 . 1 . . Protector 2 | . . . . . . . . 2 . . . . Sentry 17 | . . . 7 . . . 3 5 1 1 . . Hunter 3 | . . . . . . . . 3 . . . . Programmer 1 | . . . . . . . . . 1 . . . Behemoth 1 | . . . . . . . . . . . 1 . Enhanced Grunt 3 | . . . . . . . . . . . . 3 Best Kill Streak 9 | . 4 2 9 2 . 4 5 8 4 4 1 2 Combat Bots Only 8 | . 3 2 8 2 . 4 4 8 3 4 1 2 Max Kills in Single Turn 4 | . 2 2 3 1 . 4 1 4 2 1 1 2 Gunslinging 1 | . 1 1 1 . . . . . . . . . Exploded 4 | . . . 2 . . 4 . 4 . . . 2 Melee . | . . . . . . . . . . . . . Uniques/NPCs Destroyed 1 | . . . . 1 . . . . . . . . YI-UF0 (-9/Mines) Combat | -11 -10 -10 -9 -9 -9 -8 -8 -8 -7 -7 -7 -7 -------- Run | Scr Mat Min Mat Min Exi Min Mat Sto Fac Low Low Dat Damage Taken 7331 | . 420 93 989 331 . 378 342 865 577 390 321 2625 Core 1219 | . 66 10 171 48 . 49 48 86 69 11 . 661 Absorbed by Shields 455 | . . . 193 . . . . . 41 161 60 . Regen/Repaired (Parts) 443 | . 138 . 83 . . . . 192 30 . . . Core Remaining (%) 69 | 100 . 69 . . . 33 . 75 . . . . Volleys Fired 345 | . 41 9 108 8 . 20 37 48 13 23 7 31 Largest 3 | . 2 2 2 2 . 2 3 3 3 3 3 3 Hottest 225 | . 112 112 122 122 . 122 225 225 225 225 165 91 Shots Fired 767 | . 78 18 208 17 . 38 94 131 39 67 21 56 Gun 742 | . 78 18 202 17 . 37 94 128 39 67 21 41 Cannon 8 | . . . . . . . . . . . . 8 Launcher 16 | . . . 5 . . 1 . 3 . . . 7 Special 1 | . . . 1 . . . . . . . . . Kinetic 98 | . 32 . . . . . . . . 16 7 43 Thermal 648 | . 46 18 203 17 . 37 94 128 39 51 14 1 Explosive 16 | . . . 5 . . 1 . 3 . . . 7 Electromagnetic 5 | . . . . . . . . . . . . 5 Robot Hit Streak 31 | . 7 12 23 31 . 15 27 17 14 10 13 12 Robot Miss Streak 6 | . 4 1 5 1 . 1 5 5 6 5 3 2 Penetration Max . | . . . . . . . . . . . . . Secondary Targets 21 | . 1 1 9 . . 2 2 1 . 4 . 1 Max Gunslinging Chain 1 | . 1 1 1 . . 1 1 1 . 1 . 1 Shots Hit Robots 589 | . 48 15 150 14 . 28 77 107 33 60 19 38 Core Hits 516 | . 24 9 72 2 . 18 73 156 46 69 15 32 Critical Kills . | . . . . . . . . . . . . . Critical Parts Destroyed 1 | . . . . . . . . . . . . 1 Critical Strikes 20 | . 3 1 12 . . . 2 . . . . 2 Burn 18 | . 3 1 12 . . . 2 . . . . . Destroy 1 | . . . . . . . . . . . . 1 Blast 1 | . . . . . . . . . . . . 1 Melee Attacks 12 | . . . 3 . . . . 5 4 . . . Impact 12 | . . . 3 . . . . 5 4 . . . Slashing . | . . . . . . . . . . . . . Piercing . | . . . . . . . . . . . . . Sneak Attacks . | . . . . . . . . . . . . . Combat Hostiles . | . . . . . . . . . . . . . Follow-up Attacks . | . . . . . . . . . . . . . Damage Inflicted 13817 | . 741 265 3369 260 . 808 1484 3065 746 1177 530 1372 Guns 11270 | . 741 265 2600 259 . 523 1477 2279 746 1177 530 673 Cannons 117 | . . . . . . . . . . . . 117 Explosions 2353 | . . . 737 . . 268 . 766 . . . 582 Melee . | . . . . . . . . . . . . . Ramming 65 | . . . 20 1 . 17 7 20 . . . . Kinetic 1294 | . 267 . . . . . . . . 177 143 707 Thermal 10124 | . 474 265 2612 259 . 605 1477 2279 746 1000 387 20 Explosive 2271 | . . . 737 . . 186 . 766 . . . 582 Electromagnetic 63 | . . . . . . . . . . . . 63 Impact . | . . . . . . . . . . . . . Slashing . | . . . . . . . . . . . . . Piercing . | . . . . . . . . . . . . . Highest Corruption 2 | . . . 2 2 2 2 2 2 . . . . Average Corruption 2 | . . . 2 2 2 2 2 2 . . . . Corruption Purged . | . . . . . . . . . . . . . Corruption Blocked . | . . . . . . . . . . . . . Effects 94 | . . . 39 15 2 12 5 21 . . . . Message Errors 21 | . . . 13 1 2 2 1 2 . . . . Matter Fused 26 | . . . 11 5 . 3 1 6 . . . . Heat Flow Errors 10 | . . . 2 3 . 2 1 2 . . . . Energy Discharges 11 | . . . 5 3 . . 1 2 . . . . Parts Rejected 1 | . . . . . . . . 1 . . . . Data Loss (minor) 8 | . . . 3 1 . 2 . 2 . . . . Data Loss (major) 5 | . . . 1 . . 2 . 2 . . . . Misfires 5 | . . . 1 1 . . 1 2 . . . . Alerts 3 | . . . 2 1 . . . . . . . . Weapon Failures 4 | . . . 1 . . 1 . 2 . . . . Overload Shots . | . . . . . . . . . . . . . Overflow Damage 34 | . . . 6 . . 28 . . . . . . Projectiles . | . . . . . . . . . . . . . Explosions 34 | . . . 6 . . 28 . . . . . . Melee . | . . . . . . . . . . . . . Knockbacks . | . . . . . . . . . . . . . Impact . | . . . . . . . . . . . . . Kinetic . | . . . . . . . . . . . . . Secondary . | . . . . . . . . . . . . . Self-Inflicted Damage 124 | . . . 84 . . 40 . . . . . . Shots 4 | . . . 3 . . 1 . . . . . . Rammed 15 | . . . 6 1 . 3 1 4 . . . . Targets Rammed 16 | . . . 6 1 . 3 2 4 . . . . Kicked . | . . . . . . . . . . . . . Crushed 1 | . . . . . . . 1 . . . . . Highest Temperature 292 | . 292 45 153 200 . 139 167 232 198 195 108 198 Average Temperature 56 | . 69 18 32 43 . 48 54 65 100 71 39 101 Received Heat Transfer 1476 | . 174 54 418 . . 90 189 288 86 123 54 . Siege Activations . | . . . . . . . . . . . . . Robots Corrupted . | . . . . . . . . . . . . . Combat Hostiles . | . . . . . . . . . . . . . Parts Fried . | . . . . . . . . . . . . . Impact Corruptions . | . . . . . . . . . . . . . Robots Melted 3 | . . . 2 1 . . . . . . . . Combat Hostiles 3 | . . . 2 1 . . . . . . . . Parts Melted 29 | . 3 . 17 . . 2 3 3 1 . . . Heat Transferred 15718 | . 1258 629 6438 555 . 1210 1948 1895 610 830 320 25 Parts Sabotaged . | . . . . . . . . . . . . . Parts Stolen . | . . . . . . . . . . . . . Parts Stripped . | . . . . . . . . . . . . . Power Chain Reactions . | . . . . . . . . . . . . . Missiles Intercepted . | . . . . . . . . . . . . . Alert | -11 -10 -10 -9 -9 -9 -8 -8 -8 -7 -7 -7 -7 ------- Run | Scr Mat Min Mat Min Exi Min Mat Sto Fac Low Low Dat Peak Influence 881 | . 222 186 881 544 . 358 254 386 177 . . . Initial 343 | . . 86 19 343 . . 82 107 174 . . . Average 236 | . 99 113 560 235 . 136 147 141 80 . . . Maximum Alert Level 3 | . 1 . 3 2 . 1 1 1 . . . . Low Security (%) 63 | 100 90 100 14 49 . 74 84 66 100 . . . Level 1 19 | . 9 . 13 47 . 25 15 33 . . . . Level 2 8 | . . . 34 2 . . . . . . . . Level 3 8 | . . . 37 . . . . . . . . . Level 4 . | . . . . . . . . . . . . . Level 5 . | . . . . . . . . . . . . . High Security . | . . . . . . . . . . . . . Max Security . | . . . . . . . . . . . . . Squads Dispatched 23 | . 3 1 9 . . . 2 6 2 . . . Investigation 9 | . 3 1 2 . . . . 2 1 . . . Extermination 1 | . . . . . . . . . 1 . . . Reinforcement 7 | . . . 4 . . . 2 1 . . . . Assault 5 | . . . 3 . . . . 2 . . . . Garrison 1 | . . . . . . . . 1 . . . . Intercept . | . . . . . . . . . . . . . Searches Triggered . | . . . . . . . . . . . . . Construction Impeded . | . . . . . . . . . . . . . Haulers Reinforced . | . . . . . . . . . . . . . Active Scanning Responses . | . . . . . . . . . . . . . Cargo Convoy Interrupts . | . . . . . . . . . . . . . Stealth | -11 -10 -10 -9 -9 -9 -8 -8 -8 -7 -7 -7 -7 --------- Run | Scr Mat Min Mat Min Exi Min Mat Sto Fac Low Low Dat Distress Signals 14 | . 3 . 3 . . . 3 4 1 . . . Communications Jammed . | . . . . . . . . . . . . . Distress Signals . | . . . . . . . . . . . . . Times Spotted 204 | . 22 8 68 9 . 13 15 39 9 16 1 4 Peak Tracking Total 11 | . 4 2 6 8 . 4 4 11 4 4 1 4 Tactical Retreats 5 | . . . 3 . . . 1 . . 1 . . Traps | -11 -10 -10 -9 -9 -9 -8 -8 -8 -7 -7 -7 -7 ------- Run | Scr Mat Min Mat Min Exi Min Mat Sto Fac Low Low Dat Traps Triggered 6 | . 1 . 1 . . . . 2 2 . . . Indirectly . | . . . . . . . . . . . . . Trap Hack Attempts . | . . . . . . . . . . . . . Triggered . | . . . . . . . . . . . . . Disarmed 3 | . 3 . . . . . . . . . . . Reprogrammed . | . . . . . . . . . . . . . Reused . | . . . . . . . . . . . . . Traps Extracted . | . . . . . . . . . . . . . Installed . | . . . . . . . . . . . . . Triggered 4 | . . . . . . . . . . 4 . . Machines | -11 -10 -10 -9 -9 -9 -8 -8 -8 -7 -7 -7 -7 ---------- Run | Scr Mat Min Mat Min Exi Min Mat Sto Fac Low Low Dat Machines Disabled 17 | . 1 . 1 . . 12 . 3 . . . . Max in Single Turn 12 | . 1 . 1 . . 12 . 1 . . . . Garrison Access 1 | . . . . . . . . 1 . . . . Machines Sabotaged . | . . . . . . . . . . . . . Garrisons Compromised . | . . . . . . . . . . . . . Overloaded Fab Kills . | . . . . . . . . . . . . . Hacking | -11 -10 -10 -9 -9 -9 -8 -8 -8 -7 -7 -7 -7 --------- Run | Scr Mat Min Mat Min Exi Min Mat Sto Fac Low Low Dat Machines Accessed 48 | . 11 2 6 . 1 . 3 15 5 . 1 4 Terminals 28 | . 8 . 3 . . . 3 10 4 . . . Fabricators . | . . . . . . . . . . . . . Repair Stations 5 | . 1 . 1 . . . . 2 1 . . . Recycling Units 6 | . 2 . 2 . . . . 2 . . . . Scanalyzers . | . . . . . . . . . . . . . Garrison Access 1 | . . . . . . . . 1 . . . . Total Hacks 157 | . 40 2 18 . 1 . 6 45 13 . 1 31 Successful 102 | . 24 2 10 . 1 . 1 27 5 . 1 31 Failed 55 | . 16 . 8 . . . 5 18 8 . . . Catastrophic 6 | . 1 . 1 . . . 2 2 . . . . Database Lockouts . | . . . . . . . . . . . . . Manual 65 | . 25 . 14 . . . 5 18 3 . . . Terminals 87 | . 32 . 13 . . . 6 27 9 . . . Fabricators . | . . . . . . . . . . . . . Repair Stations 25 | . 6 . 3 . . . . 12 4 . . . Recycling Units 9 | . 2 . 2 . . . . 5 . . . . Scanalyzers . | . . . . . . . . . . . . . Garrison Access 1 | . . . . . . . . 1 . . . . Terminal Hacks 68 | . 13 2 4 . 1 . . 13 3 . 1 31 Record 12 | . . . . . 1 . . . . . . 11 Part Schematic 14 | . 2 . . . . . . . . . . 12 Robot Schematic 5 | . . . . . . . . . . . . 5 Robot Analysis 2 | . 2 . . . . . . . . . . . Prototype ID Bank 9 | . 4 . 1 . . . . 1 . . . 3 Open Door 6 | . . 2 . . . . . 3 . . 1 . Branch Access Points 1 | . . . . . . . . . 1 . . . Terminal Index 1 | . . . . . . . . . 1 . . . Repair Station Index 1 | . . . . . . . . 1 . . . . Alert Level 7 | . 1 . 2 . . . . 4 . . . . Unreport Threat 5 | . . . 1 . . . . 3 1 . . . Locate Traps 2 | . 1 . . . . . . 1 . . . . Disarm Traps 1 | . 1 . . . . . . . . . . . Hauler Manifests 2 | . 2 . . . . . . . . . . . Fabricator Hacks . | . . . . . . . . . . . . . Repair Station Hacks 18 | . 6 . 2 . . . . 8 2 . . . Scan Component 10 | . 3 . 1 . . . . 5 1 . . . Repair 8 | . 3 . 1 . . . . 3 1 . . . Recycling Unit Hacks 1 | . . . . . . . . 1 . . . . Retrieve Components 1 | . . . . . . . . 1 . . . . Scanalyzer . | . . . . . . . . . . . . . Garrison Access Hacks 1 | . . . . . . . . 1 . . . . Seal Access 1 | . . . . . . . . 1 . . . . Unauthorized Hacks 14 | . 5 . 4 . . . 1 4 . . . . Terminals 10 | . 3 . 2 . . . 1 4 . . . . Botnet 7 | . 2 . 1 . . . 1 3 . . . . Operators 3 | . 1 . 1 . . . . 1 . . . . Fabricators . | . . . . . . . . . . . . . Repair Stations . | . . . . . . . . . . . . . Recycling Units 4 | . 2 . 2 . . . . . . . . . Tunnel 4 | . 2 . 2 . . . . . . . . . Scanalyzers . | . . . . . . . . . . . . . Garrison Access . | . . . . . . . . . . . . . Data Cores Recovered . | . . . . . . . . . . . . . Used . | . . . . . . . . . . . . . Hacking Detections 32 | . 9 . 4 . . . 3 11 5 . . . Full Trace Events 4 | . . . . . . . . 3 1 . . . Feedback Events . | . . . . . . . . . . . . . Feedback Blocked . | . . . . . . . . . . . . . Robot Schematics Acquired 5 | . . . . . . . . . . . . 5 Robots Built . | . . . . . . . . . . . . . Authchips . | . . . . . . . . . . . . . Time . | . . . . . . . . . . . . . Total Robot Build Rating . | . . . . . . . . . . . . . Part Schematics Acquired 14 | . 2 . . . . . . . . . . 12 Parts Built . | . . . . . . . . . . . . . Authchips . | . . . . . . . . . . . . . Time . | . . . . . . . . . . . . . Total Part Build Rating . | . . . . . . . . . . . . . Parts Repaired 8 | . 3 . 1 . . . . 3 1 . . . Time 347 | . 103 . 60 . . . . 152 32 . . . Parts Recycled . | . . . . . . . . . . . . . Recycled Matter . | . . . . . . . . . . . . . Retrieved Matter . | . . . . . . . . . . . . . Retrieved Components 6 | . . . . . . . . 6 . . . . Parts Scanalyzed . | . . . . . . . . . . . . . Part Schematics Acquired . | . . . . . . . . . . . . . Parts Damaged . | . . . . . . . . . . . . . Bothacking | -11 -10 -10 -9 -9 -9 -8 -8 -8 -7 -7 -7 -7 ------------ Run | Scr Mat Min Mat Min Exi Min Mat Sto Fac Low Low Dat Used RIF Installer . | . . . . . . . . . . . . . Robots Hacked . | . . . . . . . . . . . . . Non-combat . | . . . . . . . . . . . . . Combat . | . . . . . . . . . . . . . Robot Hacks Applied . | . . . . . . . . . . . . . Relay Couplers Released . | . . . . . . . . . . . . . Fabnet Peak Effective % . | . . . . . . . . . . . . . Robots Rewired . | . . . . . . . . . . . . . Allies Hacked . | . . . . . . . . . . . . . Hacks Repelled . | . . . . . . . . . . . . . Allies | -11 -10 -10 -9 -9 -9 -8 -8 -8 -7 -7 -7 -7 -------- Run | Scr Mat Min Mat Min Exi Min Mat Sto Fac Low Low Dat Total Allies 5 | . . . . 3 . . . 2 . . . . Largest Group 3 | . . . . 3 . . . 2 1 . . . Highest-Rated Group 62 | . . . . 40 . . . 62 28 . . . Highest-Rated Ally 31 | . . . . 16 . . . 31 28 . . . Total Orders . | . . . . . . . . . . . . . Ally Attacks 34 | . . . . 19 . . . 8 7 . . . Total Damage 507 | . . . . 217 . . . 146 144 . . . Kills 11 | . . . . 7 . . . 3 1 . . . Allies Corrupted . | . . . . . . . . . . . . . Allies Melted . | . . . . . . . . . . . . . Intel | -11 -10 -10 -9 -9 -9 -8 -8 -8 -7 -7 -7 -7 ------- Run | Scr Mat Min Mat Min Exi Min Mat Sto Fac Low Low Dat Robot Analysis Total 130 | . 2 . . . . . . . . . . 128 Derelict Logs Recovered 2 | . . 1 . 1 . . . . . . . . Drone Launches . | . . . . . . . . . . . . . Drone Recoveries . | . . . . . . . . . . . . . Exploration | -11 -10 -10 -9 -9 -9 -8 -8 -8 -7 -7 -7 -7 ------------- Run | Scr Mat Min Mat Min Exi Min Mat Sto Fac Low Low Dat Turns Passed 13798 | 78 1595 706 2670 1589 419 971 779 1525 1442 739 1032 253 Spaces Moved 5587 | 47 765 410 1169 640 173 371 250 487 538 263 409 65 Core 11 | 11 . . . . . . . . . . . . Treads 5576 | 36 765 410 1169 640 173 371 250 487 538 263 409 65 Legs . | . . . . . . . . . . . . . Wheels . | . . . . . . . . . . . . . Hover . | . . . . . . . . . . . . . Flight . | . . . . . . . . . . . . . Fastest Speed 50 | 50 160 160 160 240 240 240 240 240 240 240 240 240 Average Speed 210 | 138 160 160 182 240 240 240 240 240 240 240 240 240 Slowest Speed 320 | 160 160 160 240 240 240 240 240 240 240 240 320 240 Overloaded Moves . | . . . . . . . . . . . . . Propulsion Burnouts . | . . . . . . . . . . . . . Robots Hopped . | . . . . . . . . . . . . . Cave-ins Triggered . | . . . . . . . . . . . . . Exploration Rate (%) 63 | 3 98 78 73 99 50 92 20 93 13 52 68 80 Regions Visited 12 Branch Regions 8 Pre-discovered Areas 27 | . 2 1 2 1 1 . . . . . . 20 Known Exits Taken 1 | . . . . . . . . . 1 . . . Unknown Exits Taken 11 | 1 1 1 1 1 1 1 1 1 . 1 1 . Scrap Searched 8 | . . 2 . 2 . 1 . . . 2 1 . Spaces Dug 26 | . . . 20 . . . . 2 4 . . . Terrain Destroyed 108 | . . . 48 . . 31 . 16 4 . . 9 Melee 9 | . . . 3 . . . . 2 4 . . . Projectile . | . . . . . . . . . . . . . AOE 99 | . . . 45 . . 31 . 14 . . . 9 Terrain Rammed . | . . . . . . . . . . . . . Walls Destroyed . | . . . . . . . . . . . . . Machines Disabled . | . . . . . . . . . . . . . Actions | -11 -10 -10 -9 -9 -9 -8 -8 -8 -7 -7 -7 -7 --------- Run | Scr Mat Min Mat Min Exi Min Mat Sto Fac Low Low Dat Total 6955 | 58 1063 445 1503 678 180 408 356 728 653 322 442 119 Wait 632 | . 212 12 116 27 . 3 29 126 62 25 9 11 Move 5575 | 46 764 409 1168 639 172 370 249 486 537 262 408 65 Hop . | . . . . . . . . . . . . . Pick Up 84 | 7 21 3 23 1 2 2 6 8 7 . 3 1 Fast Attach 51 | 5 6 2 7 . . 1 5 8 11 4 2 . Attach 37 | . 3 . 7 . 2 4 5 2 2 1 2 9 Detach 7 | . . . 1 . . 1 3 1 . . . 1 Swap 77 | . 2 3 28 1 . 3 11 17 3 3 6 . Drop 115 | . 14 7 36 1 4 1 9 19 14 4 5 1 Fire 345 | . 41 9 108 8 . 20 37 48 13 23 7 31 Melee 12 | . . . 3 . . . . 5 4 . . . Ram . | . . . . . . . . . . . . . Kick . | . . . . . . . . . . . . . Crush 16 | . . . 6 1 . 3 2 4 . . . . Escape Stasis 4 | . . . . . . . . 4 . . . . Rewire . | . . . . . . . . . . . . . Trap . | . . . . . . . . . . . . . Miscellaneous . | . . . . . . . . . . . . . Route ------- -11/Scrapyard -10/Materials (discovered 4 exits: *Mat x3 / *Min) -10/Mines -9/Materials (discovered 3 exits: *Mat x2 / [*Min]) -9/Mines (discovered 3 exits: *Mat x2 / *Exi) -9/Exiles (discovered 2 exits: [*Min x2]) -8/Mines -8/Materials -8/Storage -7/Factory (discovered 2 exits: *Low x2) -7/Lower Caves -7/Lower Caves -7/Data Miner (discovered 1 exit: [*Pro]) History --------- Turn | Location | Event 3 | -11/Scrapyard | Discovered new exit (range 16) 79 | -11/Scrapyard | Entered Materials 317 | -10/Materials | Build established: Mutant 666 | -10/Materials | Discovered new exit (range 4) 896 | -10/Materials | Discovered new exit (range 9) 1218 | -10/Materials | Repaired Lgt. Treads 1246 | -10/Materials | Repaired Lgt. Treads 1298 | -10/Materials | Repaired Imp. Medium Laser 1374 | -10/Materials | Discovered new exit (range 8) 1546 | -10/Materials | Discovered new exit (range 8) 1674 | -10/Materials | Entered Mines 1893 | -10/Mines | Found the Drone Emporium 1901 | -10/Mines | Found Prototype Device 1901 | -10/Mines | Identified Splice Drone Bay 1977 | -10/Mines | Met a Derelict shopkeep closing up shop 2016 | -10/Mines | Learned Materials interactive machine intel 2044 | -10/Mines | Learned location of Storage (-8) 2253 | -10/Mines | A weapon hastily lodged in a ceiling crevice suddenly fell to the ground 2356 | -10/Mines | Discovered new exit (range 12) 2373 | -10/Mines | Assembled infested the area 2378 | -10/Mines | Assisted by a Guerilla fighting off Assembled 2380 | -10/Mines | Entered Materials 2380 | -9/Materials | Evolved 2 slots: Utility x2 2381 | -9/Materials | Loaded intel: 18 interactive machine locations 2740 | -9/Materials | Destroyed 8 combat bots 3188 | -9/Materials | Build established: Scavenger-Mutant 3313 | -9/Materials | Discovered new exit (range 15) 3881 | -9/Materials | Discovered new exit (range 11) 3980 | -9/Materials | First assault squad dispatched 4083 | -9/Materials | Discovered new exit (range 16) 4482 | -9/Materials | Build established: Mutant 4837 | -9/Materials | Repaired Prc. Beam Rifle 5050 | -9/Materials | Entered Mines 5363 | -9/Mines | Assisted by bots powering up and referring to "LRC-V3" 5458 | -9/Mines | Discovered new exit (range 16) 5963 | -9/Mines | Core integrity fell below 50% 5965 | -9/Mines | Destroyed YI-UF0 6039 | -9/Mines | Deemed a non-threat by the Exiles lab entrance 6217 | -9/Mines | Discovered new exit (range 13) 6630 | -9/Mines | Discovered new exit (range 5) 6639 | -9/Mines | Entered Exiles 6675 | -9/Exiles | Discovered new exit (range 15) 6699 | -9/Exiles | Met 8R-AWN 6746 | -9/Exiles | Met EX-HEX 6837 | -9/Exiles | Met EX-DEC 6859 | -9/Exiles | Learned location of Zion (-6) 7027 | -9/Exiles | Discovered new exit (range 10) 7058 | -9/Exiles | Entered Mines 7985 | -8/Mines | Discovered new exit (range 13) 8029 | -8/Mines | Entered Materials 8029 | -8/Materials | Evolved 2 slots: Utility x1, Weapon x1 8353 | -8/Materials | Build established: Tank 8693 | -8/Materials | Discovered new exit (range 10) 8808 | -8/Materials | Entered Storage 8880 | -8/Storage | Garrison activated, responded to threat 9633 | -8/Storage | Repaired Imp. Light Armor Plating 9661 | -8/Storage | Repaired Lgt. Treads? 9758 | -8/Storage | Repaired Broken Imp. Spread Laser 10054 | -8/Storage | Build established: Gunner 10239 | -8/Storage | Discovered new exit (range 16) 10248 | -8/Storage | Met a pair of Derelict thieves 10293 | -8/Storage | Destroyed 8 combat bots 10333 | -8/Storage | Entered Factory 10333 | -7/Factory | Accompanied by 1 ally 10333 | -7/Factory | Evolved 2 slots: Utility x2 10421 | -7/Factory | Repaired Cooling System 10818 | -7/Factory | Build established: Skirmisher 11202 | -7/Factory | Identified exit to Lower Caves 11297 | -7/Factory | Build established: Tank 11775 | -7/Factory | Entered Lower Caves 11791 | -7/Lower Caves | Encountered a Warlord checkpoint 12040 | -7/Lower Caves | Spotted B-75 Beast 12446 | -7/Lower Caves | Attracted the attention of an 0b10 checkpoint 12492 | -7/Lower Caves | Discovered new exit (range 9) 12514 | -7/Lower Caves | Entered another Lower Caves area 12799 | -7/Lower Caves | Encountered a Warlord checkpoint 13134 | -7/Lower Caves | Spotted B-75 Beast 13175 | -7/Lower Caves | Destroyed B-75 Beast 13524 | -7/Lower Caves | Discovered new exit (range 7) 13546 | -7/Lower Caves | Entered Data Miner 13546 | -7/Data Miner | Discovered new exit (range 6) 13582 | -7/Data Miner | Met Data Miner 13638 | -7/Data Miner | Learned location of Section 7 (-2) 13638 | -7/Data Miner | Acquired the access code to Warlord's prototype stash 13669 | -7/Data Miner | Build established: Derelict-Tank 13681 | -7/Data Miner | Received God Mode back door access code from Data Miner 13702 | -7/Data Miner | Interfaced with the Data Conduit 13758 | -7/Data Miner | Core integrity fell below 50% 13776 | -7/Data Miner | Core integrity fell below 20% 13799 | -7/Data Miner | Destroyed by Enhanced Grunt with Neutron Cannon Last Messages --------------- 13732_ Switching to secondary target: Enhanced Grunt. 13735_ Prc. Assault Rifle destroyed. 13744_ Destroyed Adv. Particle Charger. 13744_ Imp. Treads destroyed. 13749_ Enhanced Grunt suffers critical hit (Destroy). 13749_ Destroyed Antimatter Reactor. 13750_ Hvy. Armor Plating destroyed. 13753_ Deuterium Engine destroyed. 13753_ Minigun destroyed. 13754_ Imp. Heavy Machine Gun destroyed. 13756_ Lgt. Treads destroyed. 13763_ Enhanced Grunt destroyed. 13768_ Dropped Hcp. Matter Pod. 13769_ Extracted 200 matter. 13770_ Acquired Hcp. Matter Pod. 13780_ Hvy. EM Shotgun destroyed. 13780_ Lgt. Treads destroyed. 13790_ Hvy. EM Shotgun destroyed. 13795_ Mni. Grenade Launcher destroyed. 13797_ Adv. Visual Processing Unit destroyed. Map ----- +----------------------------------------------------+ | | | | | | | | | | | | | | | | | | | | | | | | | | | | | ??????????????????????????????????? | | ??????????????????????????????????? | | ??????????????????????????????????? | | ????????????????###???????????????? | | ???????????????# #?#?????????????? | | ????########### # # #???????????? | | ???##""""""""""" #####????????# | | ??##""""""""" """"# # ###### | | ??#""""""" % =%% | | ??#"""" ! % | | ??#""" % | | ??#""""" @ g % | | ??#""" | | ??#""""" """""""""" | | ??#""""" """"######### | | ??##"""" """""###???????? | | ???##"""""""" "#####?????????? | | ????########"## "#?????????????? | | ???????????#"### "#?????????????? | | ???????????#"### "#?????????????? | | ???????????#"## "#?????????????? | | ???????????#"## "#?????????????? | | ???????????#"# "#?????????????? | | ?????????????### "#?????????????? | | ???????????????# "##????????????? | | ??????????????## ""#????????????? | | ?????????????## ""#????????????? | | ????????#"##"#"X ""#????????????? | | ????????#"""""" "#####????????? | | ????????##""""" X"""""#????????? | | ?????????###"#"X "##"##????????? | | ???????????#"## X""""#?????????? | | ??????????????## "##"#?????????? | | ???????????????#######??#?????????? | | ??????????????????????????????????? | | ??????????????????????????????????? | +----------------------------------------------------+ Best States ------------- Heat Dissipation 89 Coolant Potential 65 Energy Generation 14 Energy Capacity 280 Matter Stores 300 Matter Capacity 300 Sight Range 20 Robot Scan Range 15 Terrain Scan Density 10 Armor Coverage 825 Resistance: KI 20 Resistance: TH 15 Evasion (%) 40 Targeting Accuracy 8 Recoil Reduction 2 Offensive Hacking 10 Authchip Count 1 Item Schematics ----------------- Huge Storage Unit | -10/Materials | Hacked Hcp. Storage Unit | -10/Materials | Hacked Combat Drone Bay | -7/Data Miner | Free Lgt. Regenerative Plating | -7/Data Miner | Free Cld. Cesium-ion Thruster | -7/Data Miner | Free Gravity Neutralizer | -7/Data Miner | Free Cld. Plasma Cannon | -7/Data Miner | Free Antigrav System | -7/Data Miner | Free Adv. Field Recycling Unit | -7/Data Miner | Free Imp. Arc Projector | -7/Data Miner | Free Imp. Recalibrator | -7/Data Miner | Free Lrn. Proton Cannon | -7/Data Miner | Free Adv. Reaction Control System | -7/Data Miner | Free Imp. VSS Leg | -7/Data Miner | Free Robot Schematics ------------------ Y-54 Guardian | -7/Data Miner | Free H-55 Commando | -7/Data Miner | Free L-41 Fighter | -7/Data Miner | Free G-50 Soldier | -7/Data Miner | Free E-15 Imp | -7/Data Miner | Free Fabricated ------------ Nothing Alien Tech Used ----------------- None Achievements -------------- None Challenges ------------ None Game ------ Seed ArcTachyonDesublimator Manual? 0 Play Time 01:01:23 Cumulative 471.2 hours Start 2022.06.06 @ 13:45:42 End 2022.06.06 @ 14:45:54 Sessions 1 Manual Loads 0 Difficulty Rogue Special Mode None Game No. 445 Rogue 445 Adventurer 0 Explorer 0 Win Type - Total 22 Types 13/2/4/2/0/0/0/1/0 Lore% 94 Gallery% 93 Achievement% 78 Wizard Run 0 Options --------- ASCII 0 Keyboard 0 Movement Arrows Keybinds 0 Fullscreen 1 Font 18/Smallcaps Map View 76x50 Tactical HUD 1 Map Filters NONE Filters NONE Steam 1 RUN: 7557bdd0-2735-47cd-b0e9-c85e42a03d51